bitfinex/quotes_SOLUSD_20241121
["timestamp","ask_amount","ask_price","bid_price","bid_amount"]
[1732147429462,13.03341346,235.36,235.3,20.0]
[1732147430141,13.03341346,235.35,235.29,20.0]
[1732147430341,13.03341346,235.36,235.29,20.0]
[1732147431448,13.03341346,235.33,235.27,16.1488]
[1732147431627,10.6188,235.43,235.27,16.1488]
[1732147431628,13.03341346,235.3,235.27,16.1488]
[1732147431845,13.03341346,235.3,235.23,13.03341346]
[1732147432059,13.03341346,235.29,235.22,13.03341346]
[1732147432258,13.03341346,235.3,235.23,13.03341346]
[1732147432934,13.03341346,235.3,235.24,20.0]
[1732147433140,13.03341346,235.3,235.25,4.2507]
[1732147434051,13.03341346,235.26,235.23,4.2511]
[1732147434246,13.03341346,235.25,235.23,4.2511]
[1732147435163,13.03341346,235.26,235.23,4.2511]
[1732147436164,13.03341346,235.25,235.21,15.3259]
[1732147436337,13.03341346,235.25,235.19,24.2518]
[1732147436664,4.2499,235.3,235.19,24.2518]
[1732147436665,13.03341346,235.26,235.19,24.2518]
[1732147436866,13.03341346,235.28,235.21,13.03341346]
[1732147437035,13.03341346,235.33,235.27,4.2504]
[1732147437356,4.2486,235.37,235.27,17.28381346]
[1732147437563,4.2486,235.37,235.27,4.2504]
[1732147437767,4.2483,235.39,235.28,13.03341346]
[1732147437966,13.03341346,235.39,235.32,13.03341346]
[1732147438258,13.03341346,235.39,235.31,13.03341346]
[1732147438771,13.03341346,235.38,235.31,13.03341346]
[1732147438967,13.03341346,235.42,235.34,13.03341346]
[1732147439262,13.03341346,235.42,235.35,13.03341346]
[1732147439483,13.03341346,235.42,235.34,13.03341346]
[1732147439792,13.03341346,235.41,235.34,13.03341346]
[1732147440590,13.03341346,235.44,235.37,13.03341346]
[1732147440792,20.76694718,235.46,235.39,20.76694718]
[1732147441363,4.2461,235.51,235.29,1.0]
[1732147441364,20.76694718,235.42,235.34,20.0]
[1732147441668,20.76694718,235.44,235.37,20.0]
[1732147441866,20.76694718,235.43,235.37,20.0]
[1732147442095,20.76694718,235.39,235.32,20.76694718]
[1732147442264,4.96132071,235.49,235.29,6.3379]
[1732147442265,20.76694718,235.36,235.29,6.3379]
[1732147442792,29.908484,235.44,235.29,6.3379]
[1732147442793,20.76694718,235.35,235.29,6.3379]
[1732147443163,20.76694718,235.37,235.3,20.76694718]
[1732147443362,20.76694718,235.37,235.29,6.3379]
[1732147443363,20.76694718,235.39,235.31,20.76694718]
[1732147443773,20.76694718,235.39,235.32,20.76694718]
[1732147443978,20.76694718,235.42,235.35,20.76694718]
[1732147444366,20.76694718,235.44,235.36,20.76694718]
[1732147445182,20.76694718,235.43,235.36,20.76694718]
[1732147445388,20.76694718,235.39,235.32,40.76694718]
[1732147445566,20.76694718,235.39,235.33,20.0]
[1732147445974,20.76694718,235.36,235.29,6.3379]
[1732147446305,20.76694718,235.34,235.29,6.3379]
[1732147446463,21.26694718,235.44,235.27,15.3259]
[1732147446464,20.76694718,235.33,235.27,15.3259]
[1732147446867,0.5,235.43,235.27,15.3259]
[1732147446868,20.76694718,235.32,235.27,15.3259]
[1732147447183,20.76694718,235.33,235.25,20.76694718]
[1732147447791,20.76694718,235.32,235.25,20.76694718]
[1732147449098,20.76694718,235.3,235.24,20.0]
[1732147449268,20.76694718,235.28,235.23,6.2054]
[1732147449472,20.76694718,235.24,235.18,6.2562]
[1732147449667,20.76694718,235.32,235.14,36.15694718]
[1732147449668,20.76694718,235.22,235.14,36.15694718]
[1732147449869,20.76694718,235.32,235.14,36.15694718]
[1732147449870,20.76694718,235.21,235.14,36.15694718]
[1732147450094,20.76694718,235.24,235.16,20.76694718]
[1732147450293,6.5558,235.37,235.14,15.39]
[1732147450294,23.776884,235.35,235.14,15.39]
[1732147450465,0.5,235.34,235.14,15.39]
[1732147450783,24.776884,235.36,235.14,15.39]
[1732147451302,20.76694718,235.25,235.17,20.76694718]
[1732147451472,20.76694718,235.24,235.17,20.76694718]
[1732147451673,20.76694718,235.25,235.17,20.76694718]
[1732147453275,20.76694718,235.2,235.15,4.2526]
[1732147453793,20.76694718,235.17,235.15,4.2526]
[1732147454190,20.76694718,235.18,235.1,20.76694718]
[1732147454403,20.76694718,235.2,235.13,20.76694718]
[1732147454875,20.76694718,235.24,235.17,20.76694718]
[1732147455079,20.76694718,235.24,235.09,4.2536]
[1732147455080,4.2496,235.32,235.13,0.5]
[1732147455302,4.2496,235.32,235.14,20.6375634]
[1732147455303,20.76694718,235.31,235.14,20.6375634]
[1732147455602,20.76694718,235.31,235.23,20.76694718]
[1732147455790,20.76694718,235.3,235.22,20.76694718]
[1732147456103,20.76694718,235.3,235.23,20.76694718]
[1732147456289,4.2496,235.32,235.25,20.76694718]
[1732147456290,20.76694718,235.32,235.25,20.76694718]
[1732147456676,20.76694718,235.31,235.24,20.76694718]
[1732147456875,4.2492,235.34,235.18,20.0]
[1732147456876,20.76694718,235.26,235.18,20.0]
[1732147457085,20.76694718,235.22,235.16,4.2524]
[1732147457285,20.76694718,235.25,235.18,20.76694718]
[1732147457990,20.76694718,235.21,235.16,4.2524]
[1732147458190,20.76694718,235.22,235.16,4.2524]
[1732147459181,20.76694718,235.26,235.19,20.76694718]
[1732147459386,20.76694718,235.26,235.16,4.2524]
[1732147459387,20.76694718,235.28,235.21,20.76694718]
[1732147459599,20.76694718,235.28,235.17,23.776884]
[1732147459784,20.76694718,235.29,235.23,20.76694718]
[1732147459998,20.76694718,235.32,235.25,20.76694718]
[1732147460302,4.2489,235.35,235.26,20.76694718]
[1732147460303,20.76694718,235.33,235.26,20.76694718]
[1732147460618,20.1959,235.39,235.23,6.3682]
[1732147460785,12.98856028,235.36,235.29,12.98856028]
[1732147461112,12.98856028,235.37,235.3,12.98856028]
[1732147461690,12.98856028,235.37,235.31,4.2497]
[1732147462517,12.98856028,235.36,235.31,4.2497]
[1732147462722,20.7824508,235.36,235.31,4.2497]
[1732147463112,20.7824508,235.37,235.3,20.7824508]
[1732147464934,20.7824508,235.32,235.24,20.7824508]
[1732147465224,20.7824508,235.34,235.27,20.7824508]
[1732147465418,20.7824508,235.34,235.23,6.3682]
[1732147465419,20.7824508,235.38,235.32,20.7824508]
[1732147465643,20.7824508,235.39,235.32,20.7824508]
[1732147465924,20.7824508,235.4,235.34,20.7824508]
[1732147466294,20.7824508,235.41,235.34,20.7824508]
[1732147466804,20.7824508,235.42,235.35,20.7824508]
[1732147467707,20.7824508,235.43,235.36,20.7824508]
[1732147468034,20.7824508,235.46,235.39,20.7824508]
[1732147468826,20.7824508,235.49,235.42,20.7824508]
[1732147469240,6.2066,235.55,235.44,20.7824508]
[1732147469241,20.7824508,235.51,235.44,20.7824508]
[1732147469526,20.7824508,235.48,235.41,20.7824508]
[1732147469726,20.7824508,235.49,235.42,20.7824508]
[1732147469895,20.7824508,235.51,235.44,20.7824508]
[1732147471595,6.2066,235.55,235.43,20.7824508]
[1732147471596,20.7824508,235.5,235.43,20.7824508]
[1732147471931,20.7824508,235.44,235.37,20.7824508]
[1732147472404,20.7824508,235.45,235.38,20.7824508]
[1732147473504,20.7824508,235.46,235.39,20.7824508]
[1732147473706,4.2467,235.48,235.38,20.7824508]
[1732147473707,20.7824508,235.45,235.38,20.7824508]
[1732147474028,20.7824508,235.44,235.37,20.7824508]
[1732147475239,20.7824508,235.45,235.38,20.7824508]
[1732147475443,20.7824508,235.45,235.39,20.7824508]
[1732147476659,20.7824508,235.46,235.4,20.7824508]
[1732147477163,20.7824508,235.45,235.39,20.7824508]
[1732147477751,20.7824508,235.47,235.4,20.7824508]
[1732147477953,20.7824508,235.48,235.42,20.7824508]
[1732147478132,20.7824508,235.46,235.39,20.7824508]
[1732147478335,20.7824508,235.45,235.38,20.7824508]
[1732147478843,20.7824508,235.45,235.39,20.7824508]
[1732147479453,20.7824508,235.46,235.39,20.7824508]
[1732147480219,20.7824508,235.47,235.4,20.7824508]
[1732147480426,20.7824508,235.47,235.32,74.1593348]
[1732147480427,20.7824508,235.45,235.38,20.7824508]
[1732147480740,20.7824508,235.46,235.39,20.7824508]
[1732147481126,4.2463,235.5,235.32,74.1593348]
[1732147481127,20.7824508,235.47,235.4,20.7824508]
[1732147481750,20.7824508,235.49,235.42,20.7824508]
[1732147482043,20.7824508,235.5,235.43,20.7824508]
[1732147482250,20.7824508,235.51,235.44,20.7824508]
[1732147482663,20.7824508,235.51,235.35,43.776884]
[1732147482664,20.7824508,235.53,235.47,20.7824508]
[1732147482821,20.7824508,235.54,235.47,20.7824508]
[1732147483143,20.7824508,235.58,235.51,20.7824508]
[1732147483729,20.7824508,235.59,235.52,20.7824508]
[1732147483949,20.7824508,235.61,235.54,20.7824508]
[1732147484449,37.1770508,235.62,235.56,20.7824508]
[1732147484768,29.35582763,235.62,235.56,12.96122763]
[1732147485436,12.96122763,235.64,235.57,12.96122763]
[1732147485626,12.96122763,235.61,235.54,12.96122763]
[1732147485830,12.96122763,235.58,235.51,12.96122763]
[1732147486046,12.96122763,235.58,235.52,12.96122763]
[1732147486626,12.96122763,235.59,235.52,12.96122763]
[1732147487029,12.96122763,235.58,235.52,12.96122763]
[1732147487231,12.96122763,235.57,235.51,12.96122763]
[1732147488530,12.96122763,235.54,235.47,12.96122763]
[1732147488736,12.96122763,235.54,235.43,23.776884]
[1732147488737,12.96122763,235.56,235.49,12.96122763]
[1732147488936,12.96122763,235.56,235.5,12.96122763]
[1732147489452,12.96122763,235.56,235.42,16.4581]
[1732147489453,12.96122763,235.54,235.48,12.96122763]
[1732147490252,12.96122763,235.56,235.49,12.96122763]
[1732147490436,12.96122763,235.55,235.48,12.96122763]
[1732147491031,4.2441,235.62,235.43,20.0]
[1732147491032,12.96122763,235.56,235.49,12.96122763]
[1732147491450,12.96122763,235.58,235.51,12.96122763]
[1732147491654,12.96122763,235.61,235.54,12.96122763]
[1732147491952,12.96122763,235.63,235.57,12.96122763]
[1732147492157,12.96122763,235.63,235.56,12.96122763]
[1732147492331,4.2435,235.66,235.53,12.96122763]
[1732147492332,12.96122763,235.59,235.53,12.96122763]
[1732147492848,12.96122763,235.6,235.54,12.96122763]
[1732147493633,12.96122763,235.61,235.54,12.96122763]
[1732147494255,12.96122763,235.61,235.55,12.96122763]
[1732147495548,12.96122763,235.62,235.55,12.96122763]
[1732147496941,4.244,235.63,235.56,12.96122763]
[1732147496942,12.96122763,235.63,235.56,12.96122763]
[1732147497148,12.96122763,235.62,235.55,12.96122763]
[1732147498040,12.96122763,235.63,235.56,12.96122763]
[1732147498263,17.20522763,235.63,235.56,12.96122763]
[1732147499532,12.96122763,235.62,235.55,12.96122763]
[1732147500337,12.96122763,235.6,235.53,12.96122763]
[1732147500538,12.96122763,235.59,235.52,12.96122763]
[1732147500957,12.96122763,235.6,235.53,12.96122763]
[1732147501162,12.96122763,235.61,235.54,12.96122763]
[1732147501369,17.20562763,235.61,235.54,12.96122763]
[1732147501744,12.96122763,235.61,235.54,12.96122763]
[1732147502142,12.96122763,235.59,235.52,12.96122763]
[1732147502467,12.96122763,235.58,235.51,12.96122763]
[1732147502967,12.96122763,235.57,235.5,12.96122763]
[1732147503354,12.96122763,235.56,235.49,12.96122763]
[1732147503749,12.96122763,235.59,235.52,12.96122763]
[1732147504163,12.96122763,235.61,235.54,12.96122763]
[1732147504968,12.96122763,235.59,235.53,12.96122763]
[1732147505461,12.96122763,235.6,235.53,12.96122763]
[1732147506240,17.20552763,235.61,235.54,12.96122763]
[1732147506440,4.2443,235.61,235.55,12.96122763]
[1732147507558,12.96122763,235.62,235.46,20.0]
[1732147507559,12.96122763,235.65,235.58,12.96122763]
[1732147507749,17.20482763,235.65,235.58,12.96122763]
[1732147508464,12.96122763,235.64,235.57,12.96122763]
[1732147509557,12.96122763,235.65,235.59,12.96122763]
[1732147509751,12.96122763,235.66,235.59,12.96122763]
[1732147510248,12.96122763,235.63,235.56,12.96122763]
[1732147510576,26.9209,235.67,235.58,12.96122763]
[1732147510577,12.96122763,235.65,235.58,12.96122763]
[1732147510748,17.20472763,235.66,235.59,12.96122763]
[1732147511854,12.96122763,235.61,235.54,12.96122763]
[1732147512052,9.20482071,235.66,235.49,20.0]
[1732147512053,12.96122763,235.63,235.56,12.96122763]
[1732147512463,12.96122763,235.63,235.57,12.96122763]
[1732147513370,12.96122763,235.65,235.58,12.96122763]
[1732147513783,12.96122763,235.65,235.59,12.96122763]
[1732147514072,4.96132071,235.71,235.64,12.96122763]
[1732147514382,4.96132071,235.71,235.56,12.96122763]
[1732147514383,12.96122763,235.72,235.66,12.96122763]
[1732147514863,19.30312763,235.73,235.67,12.96122763]
[1732147515181,15.5676,235.74,235.68,12.96122763]
[1732147515554,15.5676,235.74,235.69,12.96122763]
[1732147515864,15.5676,235.74,235.59,6.3839]
[1732147516080,15.5676,235.74,235.7,12.96122763]
[1732147517274,15.5676,235.74,235.65,12.96122763]
[1732147517275,12.96122763,235.72,235.65,12.96122763]
[1732147517576,12.96122763,235.73,235.67,12.96122763]
[1732147517956,37.73214834,235.74,235.67,12.96122763]
[1732147518278,12.96122763,235.73,235.66,12.96122763]
[1732147518480,12.96122763,235.72,235.6,20.0]
[1732147518666,12.96122763,235.7,235.63,12.96122763]
[1732147518982,12.96122763,235.69,235.62,12.96122763]
[1732147519292,12.96122763,235.69,235.58,15.6628]
[1732147519293,12.96122763,235.67,235.6,12.96122763]
[1732147519466,12.96122763,235.66,235.59,12.96122763]
[1732147519779,12.96122763,235.67,235.6,12.96122763]
[1732147520078,17.20422763,235.68,235.61,12.96122763]
[1732147520284,4.243,235.68,235.62,12.96122763]
[1732147520655,31.63382071,235.74,235.63,12.96122763]
[1732147520656,12.96122763,235.7,235.63,12.96122763]
[1732147520867,12.96122763,235.7,235.56,12.96122763]
[1732147520868,12.96122763,235.72,235.65,12.96122763]
[1732147521073,15.5676,235.74,235.69,12.96122763]
[1732147521275,0.4662576,235.75,235.7,12.96122763]
[1732147521457,4.7080576,235.75,235.69,12.96122763]
[1732147521650,17.66928523,235.75,235.68,12.96122763]
[1732147521862,12.96122763,235.72,235.65,12.96122763]
[1732147522471,12.96122763,235.73,235.66,12.96122763]
[1732147522674,12.96122763,235.72,235.64,12.96122763]
[1732147523085,12.96122763,235.71,235.64,12.96122763]
[1732147523657,17.20362763,235.72,235.65,12.96122763]
[1732147524159,17.20362763,235.72,235.58,15.4497]
[1732147524160,12.96122763,235.69,235.62,12.96122763]
[1732147524487,12.96122763,235.69,235.58,15.4497]
[1732147524488,12.96122763,235.71,235.64,12.96122763]
[1732147524693,17.20362763,235.72,235.65,12.96122763]
[1732147525376,22.63070594,235.75,235.67,12.96122763]
[1732147525712,12.96122763,235.74,235.67,12.96122763]
[1732147525987,22.63070594,235.75,235.68,12.96122763]
[1732147526168,12.96122763,235.73,235.66,12.96122763]
[1732147526567,12.96122763,235.74,235.67,12.96122763]
[1732147526895,0.4662576,235.75,235.7,12.96122763]
[1732147527088,0.4662576,235.75,235.69,12.96122763]
[1732147527666,13.42748523,235.75,235.68,12.96122763]
[1732147528966,12.96122763,235.73,235.59,53.376884]
[1732147529173,12.96122763,235.72,235.64,12.96122763]
[1732147529872,12.96122763,235.7,235.63,12.96122763]
[1732147530274,9.66937831,235.75,235.58,15.4497]
[1732147530275,17.20372763,235.71,235.64,12.96122763]
[1732147530479,12.96122763,235.73,235.66,12.96122763]
[1732147530786,12.96122763,235.71,235.63,12.96122763]
[1732147531167,12.96122763,235.7,235.63,12.96122763]
[1732147531992,12.96122763,235.69,235.62,12.96122763]
[1732147534505,12.96122763,235.61,235.55,12.96122763]
[1732147535065,12.96122763,235.59,235.52,12.96122763]
[1732147535269,12.96122763,235.6,235.53,12.96122763]
[1732147536199,12.96122763,235.61,235.54,12.96122763]
[1732147536400,12.96122763,235.65,235.58,12.96122763]
[1732147536586,12.96122763,235.66,235.59,12.96122763]
[1732147537494,12.96122763,235.67,235.6,12.96122763]
[1732147537705,12.96122763,235.72,235.65,12.96122763]
[1732147537898,12.96122763,235.73,235.66,12.96122763]
[1732147538079,12.96122763,235.72,235.65,12.96122763]
[1732147538402,12.96122763,235.72,235.64,12.96122763]
[1732147538704,12.96122763,235.73,235.66,12.96122763]
[1732147539974,17.20332763,235.73,235.65,12.96122763]
[1732147540189,12.96122763,235.71,235.63,12.96122763]
[1732147540397,12.96122763,235.65,235.57,12.96122763]
[1732147540604,12.96122763,235.64,235.57,12.96122763]
[1732147541421,12.96122763,235.67,235.6,12.96122763]
[1732147541628,12.96122763,235.68,235.51,23.59405721]
[1732147541820,12.96122763,235.67,235.6,12.96122763]
[1732147542027,12.96122763,235.66,235.59,12.96122763]
[1732147543124,12.96122763,235.66,235.51,52.5575]
[1732147543125,12.96122763,235.67,235.6,12.96122763]
[1732147543433,12.96122763,235.66,235.59,12.96122763]
[1732147543832,12.96122763,235.67,235.6,12.96122763]
[1732147544138,12.96122763,235.68,235.61,12.96122763]
[1732147544920,17.20422763,235.68,235.61,12.96122763]
[1732147547726,12.96122763,235.68,235.61,12.96122763]
[1732147548719,12.96122763,235.68,235.6,12.96122763]
[1732147548917,12.96122763,235.68,235.53,20.0]
[1732147548918,17.20352763,235.72,235.65,12.96122763]
[1732147549285,12.96122763,235.71,235.64,12.96122763]
[1732147549616,12.96122763,235.68,235.61,12.96122763]
[1732147550221,12.96122763,235.66,235.59,12.96122763]
[1732147550809,12.96122763,235.67,235.6,12.96122763]
[1732147551595,12.96122763,235.65,235.58,12.96122763]
[1732147552713,12.96122763,235.65,235.57,12.96122763]
[1732147552906,12.96122763,235.63,235.55,12.96122763]
[1732147553255,12.96122763,235.59,235.52,12.96122763]
[1732147553610,12.96122763,235.61,235.55,12.96122763]
[1732147553810,12.96122763,235.62,235.55,12.96122763]
[1732147554737,12.96122763,235.63,235.56,12.96122763]
[1732147555143,15.604,235.65,235.6,12.96122763]
[1732147555816,15.604,235.65,235.59,12.96122763]
[1732147556018,28.56522763,235.65,235.58,12.96122763]
[1732147556215,12.96122763,235.62,235.55,12.96122763]
[1732147558427,12.96122763,235.61,235.54,12.96122763]
[1732147558630,12.96122763,235.62,235.55,12.96122763]
[1732147558833,15.604,235.65,235.59,12.96122763]
[1732147559443,15.604,235.65,235.6,12.96122763]
[1732147560117,32.80882763,235.65,235.57,12.96122763]
[1732147560541,12.96122763,235.64,235.56,12.96122763]
[1732147560719,12.96122763,235.61,235.54,12.96122763]
[1732147561125,4.2437,235.64,235.57,12.96122763]
[1732147561855,15.604,235.65,235.6,12.96122763]
[1732147562233,15.604,235.65,235.59,12.96122763]
[1732147562636,28.56522763,235.65,235.57,12.96122763]
[1732147562964,28.56522763,235.65,235.58,12.96122763]
[1732147563127,28.56522763,235.65,235.59,12.96122763]
[1732147563128,15.604,235.65,235.59,12.96122763]
[1732147563523,15.604,235.65,235.5,36.25739825]
[1732147563524,32.80892763,235.65,235.58,12.96122763]
[1732147563725,12.96122763,235.64,235.56,12.96122763]
[1732147563945,12.96122763,235.62,235.55,12.96122763]
[1732147564341,12.96122763,235.63,235.56,12.96122763]
[1732147564935,17.20522763,235.63,235.56,12.96122763]
[1732147566430,32.80882763,235.65,235.58,12.96122763]
[1732147566630,4.243,235.68,235.62,12.96122763]
[1732147566934,12.96122763,235.67,235.6,12.96122763]
[1732147567339,12.96122763,235.65,235.58,12.96122763]
[1732147567647,17.20492763,235.64,235.57,12.96122763]
[1732147567957,12.96122763,235.63,235.56,12.96122763]
[1732147568158,12.96122763,235.6,235.52,12.96122763]
[1732147569243,12.96122763,235.62,235.55,12.96122763]
[1732147569449,17.20492763,235.65,235.58,12.96122763]
[1732147570350,12.96122763,235.6,235.53,12.96122763]
[1732147570547,12.96122763,235.61,235.54,12.96122763]
[1732147570785,17.20542763,235.62,235.55,12.96122763]
[1732147571952,4.2442,235.62,235.55,12.96122763]
[1732147573333,4.243,235.68,235.61,12.96122763]
[1732147573537,4.2428,235.69,235.63,12.96122763]
[1732147574638,16.564,235.7,235.65,12.96122763]
[1732147575567,16.564,235.7,235.66,12.96122763]
[1732147576267,16.564,235.7,235.65,12.96122763]
[1732147576435,16.564,235.7,235.57,6.1569]
[1732147576436,16.564,235.7,235.64,12.96122763]
[1732147577047,16.564,235.7,235.65,12.96122763]
[1732147577463,17.20332763,235.74,235.67,12.96122763]
[1732147577847,17.20332763,235.74,235.66,12.96122763]
[1732147578042,12.96122763,235.72,235.64,12.96122763]
[1732147578250,12.96122763,235.7,235.62,12.96122763]
[1732147578662,12.96122763,235.67,235.6,12.96122763]
[1732147579248,12.96122763,235.71,235.64,12.96122763]
[1732147579447,12.96122763,235.73,235.66,12.96122763]
[1732147579776,17.20332763,235.74,235.67,12.96122763]
[1732147580855,0.4662576,235.75,235.72,12.96122763]
[1732147581064,0.4662576,235.75,235.63,6.369]
[1732147581065,0.4662576,235.75,235.73,12.96122763]
[1732147582543,0.4662576,235.75,235.74,12.96122763]
[1732147583955,0.4662576,235.75,235.73,12.96122763]
[1732147585671,0.4662576,235.75,235.72,12.96122763]
[1732147585854,0.4662576,235.75,235.7,12.96122763]
[1732147586883,13.42748523,235.75,235.68,12.96122763]
[1732147587053,17.66938523,235.75,235.68,12.96122763]
[1732147587671,13.42748523,235.75,235.68,12.96122763]
[1732147587869,17.66928523,235.75,235.68,12.96122763]
[1732147588468,0.4662576,235.75,235.69,12.96122763]
[1732147589884,0.4662576,235.75,235.73,12.96122763]
[1732147592795,0.4662576,235.75,235.7,12.96122763]
[1732147593402,4.7080576,235.75,235.69,12.96122763]
[1732147593705,0.4662576,235.75,235.69,12.96122763]
[1732147594577,0.4662576,235.75,235.74,12.96122763]
[1732147595395,0.4662576,235.75,235.73,12.96122763]
[1732147596876,0.4662576,235.75,235.74,12.96122763]
[1732147597083,0.4662576,235.75,235.74,32.96122763]
[1732147597601,0.4662576,235.75,235.74,56.73811163]
[1732147597982,4.2395,235.88,235.75,50.346984]
[1732147598191,16.4846,235.89,235.85,12.96122763]
[1732147598377,4.238,235.96,235.88,12.96122763]
[1732147598571,17.19922763,235.96,235.89,12.96122763]
[1732147599200,17.19922763,235.96,235.81,29.6]
[1732147599403,12.96122763,235.92,235.84,23.776884]
[1732147599573,4.238,235.96,235.84,12.96122763]
[1732147599574,12.96122763,235.91,235.84,12.96122763]
[1732147600081,12.96122763,235.92,235.85,12.96122763]
[1732147600415,4.239,235.9,235.84,12.96122763]
[1732147601073,17.20022763,235.9,235.83,12.96122763]
[1732147601495,17.20022763,235.9,235.84,12.96122763]
[1732147601496,4.239,235.9,235.84,12.96122763]
[1732147601705,12.96122763,235.93,235.86,12.96122763]
[1732147601907,12.96122763,235.92,235.85,12.96122763]
[1732147602471,17.20012763,235.91,235.84,12.96122763]
[1732147604194,17.20012763,235.91,235.83,12.96122763]
[1732147604404,12.96122763,235.9,235.83,12.96122763]
[1732147605106,17.20012763,235.91,235.84,12.96122763]
[1732147605311,12.96122763,235.93,235.86,12.96122763]
[1732147605606,12.96122763,235.95,235.89,12.96122763]
[1732147606105,17.19922763,235.96,235.89,12.96122763]
[1732147606703,0.4662576,235.98,235.89,12.96122763]
[1732147606905,0.4662576,235.98,235.94,12.96122763]
[1732147607679,0.4662576,235.98,235.93,12.96122763]
[1732147609789,0.4662576,235.98,235.95,12.96122763]
[1732147609993,0.4662576,235.98,235.97,12.96122763]
[1732147611200,0.4662576,235.98,235.97,36.73811163]
[1732147611616,12.36597603,236.0,235.97,36.73811163]
[1732147612099,12.36597603,236.0,235.99,12.96122763]
[1732147612696,12.36597603,236.0,235.99,56.73811163]
[1732147613781,12.36597603,236.0,235.99,32.96122763]
[1732147613981,12.36597603,236.0,235.99,12.96122763]
[1732147614212,16.60327603,236.0,235.95,12.96122763]
[1732147614428,12.36597603,236.0,235.95,12.96122763]
[1732147614623,16.60337603,236.0,235.94,12.96122763]
[1732147614788,12.36597603,236.0,235.94,12.96122763]
[1732147614987,12.36597603,236.0,235.95,12.96122763]
[1732147615691,12.36597603,236.0,235.96,12.96122763]
[1732147616901,12.36597603,236.0,235.98,12.96122763]
[1732147617211,12.36597603,236.0,235.97,12.96122763]
[1732147617415,12.36597603,236.0,235.96,12.96122763]
[1732147618310,12.36597603,236.0,235.94,32.96122763]
[1732147619204,12.36597603,236.0,235.96,12.96122763]
[1732147619706,12.36597603,236.0,235.95,12.96122763]
[1732147620511,12.36597603,236.0,235.96,12.96122763]
[1732147620723,12.96122763,235.99,235.92,20.0]
[1732147620907,12.96122763,235.98,235.9,12.96122763]
[1732147621112,12.96122763,235.98,235.91,12.96122763]
[1732147621309,12.36597603,236.0,235.95,12.96122763]
[1732147622323,12.36597603,236.0,235.96,12.96122763]
[1732147623300,12.36597603,236.0,235.95,12.96122763]
[1732147623530,12.96122763,235.98,235.91,12.96122763]
[1732147623734,12.96122763,235.97,235.9,12.96122763]
[1732147624000,29.56450366,236.0,235.92,12.96122763]
[1732147624540,29.56450366,236.0,235.93,12.96122763]
[1732147625722,16.60327603,236.0,235.93,12.96122763]
[1732147625929,12.36597603,236.0,235.95,12.96122763]
[1732147626830,12.36597603,236.0,235.98,12.96122763]
[1732147627035,12.36597603,236.0,235.99,12.96122763]
[1732147627710,12.36597603,236.0,235.98,12.96122763]
[1732147628352,12.36597603,236.0,235.95,12.96122763]
[1732147629632,25.32720366,236.0,235.93,12.96122763]
[1732147629937,12.96122763,235.98,235.91,12.96122763]
[1732147630134,12.96122763,235.98,235.9,12.96122763]
[1732147630930,12.96122763,235.98,235.91,12.96122763]
[1732147631506,12.96122763,235.98,235.85,36.0253]
[1732147631507,17.19872763,235.99,235.92,12.96122763]
[1732147631704,12.96122763,235.98,235.91,12.96122763]
[1732147631914,12.96122763,235.95,235.88,12.96122763]
[1732147632549,16.6586,235.98,235.84,16.0517]
[1732147632550,12.96122763,235.94,235.87,12.96122763]
[1732147633332,4.238,235.96,235.84,12.96122763]
[1732147633333,12.96122763,235.91,235.84,12.96122763]
[1732147633821,12.96122763,235.92,235.85,12.96122763]
[1732147634019,12.96122763,235.94,235.87,12.96122763]
[1732147634222,16.6586,235.98,235.92,12.96122763]
[1732147634521,12.96122763,235.99,235.83,0.5]
[1732147634522,12.36597603,236.0,235.96,12.96122763]
[1732147634748,12.36597603,236.0,235.97,12.96122763]
[1732147635052,12.36597603,236.0,235.96,12.96122763]
[1732147635269,12.36597603,236.0,235.98,12.96122763]
[1732147635553,12.36597603,236.0,235.95,12.96122763]
[1732147636634,12.36597603,236.0,235.89,15.9905]
[1732147636635,12.96122763,235.99,235.92,12.96122763]
[1732147636951,12.96122763,235.98,235.91,20.0]
[1732147637652,12.96122763,235.97,235.91,20.0]
[1732147637961,12.96122763,235.98,235.91,20.0]
[1732147638153,12.96122763,235.98,235.91,32.96122763]
[1732147638733,20.6725662,235.98,235.91,40.6725662]
[1732147639063,16.60327603,236.0,235.85,35.6001]
[1732147639064,12.36597603,236.0,235.96,20.6725662]
[1732147641253,12.36597603,236.0,235.94,20.6725662]
[1732147641423,20.6725662,235.99,235.92,20.6725662]
[1732147641824,33.03854223,236.0,235.92,20.6725662]
[1732147642027,12.36597603,236.0,235.95,20.6725662]
[1732147643162,12.36597603,236.0,235.96,20.6725662]
[1732147643549,12.36597603,236.0,235.95,20.6725662]
[1732147644849,12.36597603,236.0,235.99,20.6725662]
[1732147645167,12.36597603,236.0,235.99,40.6725662]
[1732147646542,12.36597603,236.0,235.99,64.4494502]
[1732147651173,12.36597603,236.0,235.99,64.9494502]
[1732147654756,12.36597603,236.0,235.99,80.8563502]